bitfinex-derivatives/quotes_ETHF0:USTF0_20250520
["timestamp","ask_amount","ask_price","bid_price","bid_amount"]
[1747705779754,3.21371459,2535.0,2534.8,1.9631]
[1747705779955,0.78879,2534.9,2534.8,1.9631]
[1747705781350,0.78879,2534.9,2534.8,1.2807]
[1747705781654,2.76549,2534.9,2534.8,1.2807]
[1747705781854,0.78889,2534.6,2534.5,0.6662]
[1747705782751,0.78892,2534.5,2534.4,0.6875]
[1747705782950,0.78899,2534.3,2534.0,4.5331]
[1747705783155,0.78899,2534.3,2534.1,1.3773]
[1747705783353,0.78901,2534.3,2534.1,1.3773]
[1747705783548,0.78896,2534.4,2534.1,1.3773]
[1747705783749,0.78893,2534.5,2534.1,2.16634]
[1747705784153,0.78893,2534.5,2534.2,1.3788]
[1747705784346,0.78897,2534.4,2534.2,1.3788]
[1747705784859,0.78898,2534.3,2534.2,1.3788]
[1747705788760,3.2078,2534.6,2534.3,0.78895]
[1747705788955,3.2078,2534.6,2534.4,1.3152]
[1747705789157,3.2078,2534.6,2534.5,0.78892]
[1747705789358,3.2078,2534.6,2534.5,1.49462]
[1747705789756,3.8991,2534.9,2534.6,0.78888]
[1747705789955,3.8991,2534.9,2534.7,0.6495]
[1747705790155,3.8991,2534.9,2534.8,1.3372]
[1747705790665,3.2078,2534.9,2534.8,2.12603]
[1747705790862,3.2078,2534.9,2534.8,1.3372]
[1747705792173,3.2078,2534.9,2534.8,2.12603]
[1747705793561,0.00591459,2535.0,2534.9,0.78879]
[1747705793759,0.00591459,2535.0,2534.9,2.12779]
[1747705793965,0.00591459,2535.0,2534.9,15.67179]
[1747705794965,0.00591459,2535.0,2534.9,9.883]
[1747705795271,0.00591459,2535.0,2534.9,1.339]
[1747705795472,0.00591459,2535.0,2534.9,2.12779]
[1747705795664,0.00591459,2535.0,2534.9,7.12779]
[1747705796067,0.00591459,2535.0,2534.9,9.86779]
[1747705796372,0.00591459,2535.0,2534.9,13.07559]
[1747705799373,0.78852,2535.8,2535.0,1.97191]
[1747705799570,3.9963,2535.9,2535.6,0.78857]
[1747705799769,3.9963,2535.9,2535.7,1.3779]
[1747705800370,3.2078,2535.9,2535.7,1.3779]
[1747705800675,3.2078,2535.9,2535.8,0.78851]
[1747705800866,3.2078,2535.9,2535.8,1.48421]
[1747705801174,3.99628,2535.9,2535.8,3.4357]
[1747705801376,3.99628,2535.9,2535.8,2.74]
[1747705802176,0.78858,2535.6,2535.5,0.00591459]
[1747705802478,3.2078,2535.9,2535.5,0.00591459]
[1747705802672,0.78834,2536.4,2535.9,0.78847]
[1747705802868,2.0617,2536.4,2536.0,2.0363]
[1747705803081,0.7884,2536.2,2536.0,2.0363]
[1747705803377,3.9962,2536.2,2536.0,2.0363]
[1747705803674,0.78838,2536.3,2536.0,2.0363]
[1747705803876,1.3825,2536.2,2536.0,2.0363]
[1747705804075,4.5903,2536.2,2536.0,2.0363]
[1747705806176,4.5903,2536.2,2536.1,0.78842]
[1747705806378,4.5903,2536.2,2536.0,2.82474]
[1747705806577,4.5903,2536.2,2536.0,2.0363]
[1747705806872,3.2078,2536.2,2536.0,2.0363]
[1747705807079,3.2078,2536.2,2536.0,4.7763]
[1747705807577,3.2078,2536.2,2536.0,5.56474]
[1747705807794,0.68511459,2536.4,2536.3,0.78836]
[1747705807980,0.00591459,2536.4,2536.3,0.78836]
[1747705808280,0.00591459,2536.4,2536.3,3.52836]
[1747705809470,3.2078,2537.2,2537.0,0.78814]
[1747705809670,3.2078,2537.2,2536.7,8.526]
[1747705809879,3.2078,2537.2,2537.0,0.78814]
[1747705810074,3.2078,2537.2,2536.8,1.3609]
[1747705810274,4.35014533,2537.5,2536.8,1.3609]
[1747705810275,8.34594533,2537.5,2537.0,0.78811]
[1747705810476,8.35185992,2537.5,2537.1,2.149]
[1747705810672,8.35185992,2537.5,2537.2,1.3609]
[1747705810878,7.56385992,2537.5,2537.2,2.14898]
[1747705811181,6.20605992,2537.5,2537.3,0.78804]
[1747705811376,5.56885992,2537.5,2537.4,0.78802]
[1747705811680,2.36105992,2537.5,2537.4,2.18772]
[1747705812272,2.36105992,2537.5,2537.4,4.92772]
[1747705813278,2.36105992,2537.5,2537.4,9.92772]
[1747705813687,0.00591459,2537.5,2537.4,9.92772]
[1747705813873,3.51458,2538.2,2537.7,0.78789]
[1747705814074,0.7878,2538.1,2537.8,1.3341]
[1747705814281,2.129,2538.1,2537.8,1.3341]
[1747705814485,0.78786,2537.9,2537.8,1.3341]
[1747705815079,2.05486,2537.9,2537.8,1.3341]
[1747705817183,3.2078,2538.0,2537.8,1.3341]
[1747705817382,0.00591459,2538.1,2537.8,1.3341]
[1747705817579,0.78783,2538.0,2537.8,1.3341]
[1747705818484,1.39291459,2538.1,2537.8,1.3341]
[1747705818685,1.39291459,2538.1,2537.8,2.12198]
[1747705818985,0.00591459,2538.1,2537.9,0.78784]
[1747705819187,0.00591459,2538.1,2537.8,1.3341]
[1747705819188,0.00591459,2538.1,2538.0,2.11413]
[1747705819491,3.2078,2538.7,2538.0,9.8483]
[1747705819692,3.2078,2538.7,2538.4,0.78768]
[1747705819879,3.2078,2538.7,2538.5,2.11398]
[1747705820478,3.2078,2538.7,2538.5,2.11396]
[1747705820781,3.2078,2538.7,2538.5,1.3263]
[1747705821189,3.2078,2538.7,2538.6,0.78765]
[1747705821378,3.2078,2538.7,2538.5,1.3263]
[1747705821779,5.26093,2538.7,2538.5,1.3263]
[1747705822386,4.4733,2538.7,2538.5,1.3263]
[1747705822589,4.4733,2538.7,2538.5,2.11397]
[1747705822888,3.2078,2538.7,2538.6,0.78765]
[1747705823589,3.2078,2538.7,2538.5,2.11396]
[1747705823794,0.79346459,2538.9,2538.6,0.78763]
[1747705824085,0.00591459,2538.9,2538.7,1.2725]
[1747705824490,0.00591459,2538.9,2538.7,2.06011]
[1747705824883,0.00591459,2538.9,2538.8,1.2725]
[1747705826690,0.00591459,2538.9,2538.8,2.06008]
[1747705826889,0.00591459,2538.9,2538.8,9.47508]
[1747705827088,3.2078,2539.4,2539.3,0.78743]
[1747705827294,3.2078,2539.4,2539.3,0.78205813]
[1747705827985,3.2078,2539.8,2539.7,0.7873]
[1747705829594,3.2078,2539.8,2539.7,5.7873]
[1747705829894,0.00389931,2540.0,2539.9,0.78724]
[1747705830090,0.00389931,2540.0,2539.9,9.30424]
[1747705834797,0.00389931,2540.0,2539.9,10.57384]
[1747705834994,0.00389931,2540.0,2539.9,11.20734]
[1747705836698,0.00389931,2540.0,2539.9,10.4201]
[1747705836896,0.00389931,2540.0,2539.9,11.20734]
[1747705837599,0.78704,2540.6,2539.9,15.4201]
[1747705837806,0.78704,2540.6,2540.2,0.78713]
[1747705838093,2.04964,2540.6,2540.3,1.3771]
[1747705838601,3.2078,2541.1,2540.4,3.2078]
[1747705838795,3.2078,2541.1,2541.0,0.7869]
[1747705838994,3.2078,2541.1,2540.9,9.28593]
[1747705839201,2.038,2541.2,2541.1,0.78687]
[1747705839402,2.038,2541.2,2541.0,2.07039]
[1747705839595,0.6351,2541.5,2541.3,0.78679]
[1747705839795,0.6351,2541.5,2541.2,0.78682]
[1747705840002,0.6351,2541.5,2541.3,9.7825]
[1747705840397,1.3837,2541.6,2541.3,12.9903]
[1747705840594,0.6711,2542.0,2541.3,14.95728]
[1747705840799,5.2458,2542.1,2541.8,0.78663]
[1747705841098,40.8,2542.0,2541.9,2.07012]
[1747705841402,40.8,2542.0,2541.9,1.2835]
[1747705841598,5.2458,2542.1,2541.9,1.2835]
[1747705841796,3.8621,2542.1,2541.9,1.2835]
[1747705842008,3.8621,2542.1,2541.9,2.07011]
[1747705842206,40.8,2542.3,2541.9,1.2835]
[1747705842398,3.2078,2542.0,2541.9,1.2835]
[1747705842707,3.2078,2542.0,2541.4,9.1523]
[1747705842899,3.2078,2541.5,2541.1,0.00590284]
[1747705843201,3.99456,2541.5,2541.1,9.82320284]
[1747705843402,1.2616,2541.4,2541.2,1.3203]
[1747705844391,1.2616,2541.4,2541.1,0.00590284]
[1747705844592,1.2616,2541.4,2541.1,1.32620284]
[1747705844797,0.6276,2541.3,2541.1,1.32620284]
[1747705845404,0.6276,2541.3,2541.1,0.00590284]
[1747705845603,4.5023,2541.2,2541.1,0.00590284]
[1747705845808,5.1648,2541.2,2541.1,0.00590284]
[1747705846004,1.2945,2541.2,2541.1,0.79277284]
[1747705846206,0.6276,2541.3,2541.2,0.78684]
[1747705846408,0.6276,2541.3,2541.2,1.3417]
[1747705847510,0.7867,2541.7,2541.2,2.82313]
[1747705847702,1.2945,2541.6,2541.3,1.3417]
[1747705847902,1.9223,2541.6,2541.3,1.3417]
[1747705848604,3.99455,2541.5,2541.1,0.00590284]
[1747705848808,1.2552,2541.4,2541.1,0.79276284]
[1747705849202,1.2552,2541.4,2541.2,0.78683]
[1747705849903,3.2078,2541.5,2541.4,0.78678]
[1747705850104,1.9374,2542.0,2541.8,0.78664]
[1747705850703,1.9374,2542.0,2541.8,0.78662]
[1747705850913,1.9374,2542.0,2541.9,0.78662]
[1747705851510,1.9374,2542.0,2541.8,0.78664]
[1747705851711,1.9374,2542.0,2541.7,2.15407]
[1747705851910,1.9374,2542.0,2541.8,0.78665]
[1747705852108,1.9374,2542.0,2541.8,2.15405]
[1747705852305,6.9374,2542.0,2541.4,0.78678]
[1747705852614,6.9374,2542.0,2541.6,0.78671]
[1747705852615,1.9374,2542.0,2541.6,0.78671]
[1747705852822,3.2078,2542.1,2541.8,0.78665]
[1747705853110,0.6854,2542.1,2542.0,0.78659]
[1747705853314,2.0781,2542.1,2542.0,0.78659]
[1747705853611,5.2859,2542.1,2541.6,1.3674]
[1747705853806,6.07247,2542.1,2541.7,0.78668]
[1747705854007,5.2859,2542.1,2541.6,1.3674]
[1747705854205,5.2859,2542.1,2541.4,0.6735]
[1747705854206,3.2078,2541.8,2541.4,0.6735]
[1747705854510,2.0382,2541.7,2541.4,1.317]
[1747705854806,2.0382,2541.7,2541.4,2.10376]
[1747705855211,2.0382,2541.7,2541.5,0.78674]
[1747705855712,2.0382,2541.7,2541.4,2.10377]
[1747705855911,3.2078,2541.5,2541.2,0.78682]
[1747705856106,1.3926,2541.4,2541.3,0.78681]
[1747705857208,0.6456,2541.7,2541.5,0.78672]
[1747705857407,0.6456,2541.7,2541.3,1.317]
[1747705857608,4.5868,2541.6,2541.3,1.317]
[1747705858212,1.379,2541.6,2541.5,0.78675]
[1747705858615,0.6456,2541.7,2541.6,0.78672]
[1747705858813,0.6456,2541.7,2541.3,1.317]
[1747705859014,1.379,2541.6,2541.3,2.10378]
[1747705859213,4.5868,2541.6,2541.3,1.317]
[1747705859418,1.47676,2541.5,2541.1,2.11536284]
[1747705859617,1.379,2541.4,2541.3,0.78681]
[1747705860816,1.379,2541.4,2541.2,0.78683]
[1747705861111,1.379,2541.4,2541.1,2.11536284]
[1747705861416,1.379,2541.4,2541.2,0.78684]
[1747705861615,1.379,2541.4,2541.2,2.10234]
[1747705862019,3.8978,2541.5,2541.4,0.78678]
[1747705862616,3.2078,2541.5,2541.4,0.78678]
[1747705863416,3.2078,2541.5,2541.4,1.45278]
[1747705863616,3.2078,2541.5,2541.4,2.14988]
[1747705863818,1.2826,2541.9,2541.8,0.78665]
[1747705864819,1.2826,2541.9,2541.7,1.2941]
[1747705865019,4.4904,2541.9,2541.7,1.2941]
[1747705865211,4.4904,2541.9,2541.6,8.48]
[1747705865212,5.27703,2541.9,2541.6,8.48]
[1747705865406,3.2078,2541.9,2541.6,8.48]
[1747705865613,0.6593,2542.1,2542.0,0.78659]
[1747705865811,0.6593,2542.1,2541.9,0.7866]
[1747705866008,2.0329,2542.1,2541.7,1.2941]
[1747705866216,3.2078,2541.9,2541.7,1.2941]
[1747705866515,2.0329,2542.1,2542.0,0.78659]
[1747705866716,2.0329,2542.1,2541.7,1.2941]
[1747705866917,2.0329,2542.1,2541.9,0.78661]
[1747705867218,0.6593,2542.1,2542.0,0.78659]
[1747705868214,0.6593,2542.1,2541.9,0.78661]
[1747705868412,1.9418,2542.1,2541.9,0.78661]
[1747705868618,1.9418,2542.1,2542.0,0.78659]
[1747705868820,1.9418,2542.1,2542.0,1.20696247]
[1747705869725,0.6593,2542.1,2542.0,1.20696247]
[1747705870224,3.2078,2542.2,2542.1,0.78656]
[1747705870427,3.2078,2542.2,2542.1,2.06956]
[1747705870724,0.6532,2542.4,2542.1,1.283]
[1747705870924,0.6532,2542.4,2542.2,1.283]
[1747705871125,42.1764,2542.3,2542.2,1.283]
[1747705871520,42.1764,2542.3,2542.2,2.06953]
[1747705871721,0.78656,2542.1,2542.0,0.42037247]
[1747705872123,14.26556,2542.1,2542.0,0.42037247]
[1747705872326,0.78662,2541.9,2541.8,0.44543953]
[1747705872528,3.99442,2541.9,2541.8,0.44543953]
[1747705872926,5.28512,2541.9,2541.8,0.44543953]
[1747705873630,10.28512,2541.9,2541.8,0.44543953]
[1747705874325,0.78669,2541.7,2541.4,2.11696]
[1747705874522,3.2078,2541.5,2541.4,2.11696]
[1747705875120,3.2078,2541.5,2541.4,1.3302]
[1747705875629,3.2078,2541.5,2541.4,1.75050273]
[1747705879535,3.2078,2541.5,2541.4,2.53728273]
[1747705880033,2.09667,2541.8,2541.4,2.53728273]
[1747705880629,0.78669,2541.7,2541.4,2.53728273]
[1747705880836,0.78674,2541.6,2541.4,1.75050273]
[1747705881137,0.78674,2541.6,2541.4,1.3302]
[1747705881334,2.09674,2541.6,2541.4,1.3302]
[1747705881830,1.31,2541.6,2541.2,0.44543953]
[1747705882035,2.09673,2541.6,2541.2,1.76743953]
[1747705882335,0.78673,2541.6,2541.2,1.322]
[1747705882632,1.3923,2541.6,2541.3,1.322]
[1747705883345,1.3923,2541.6,2541.4,0.78676]
[1747705883546,1.3923,2541.6,2541.5,1.322]
[1747705885547,3.2078,2541.7,2541.5,1.322]
[1747705885840,3.99449,2541.7,2541.5,1.322]
[1747705886046,1.3416,2541.6,2541.5,1.322]
[1747705886648,2.12832,2541.6,2541.5,1.322]
[1747705886847,1.3416,2541.6,2541.5,1.322]
[1747705887144,2.12832,2541.6,2541.5,1.322]
[1747705887450,1.3416,2541.6,2541.1,1.14654237]
[1747705887641,3.2078,2541.7,2541.2,1.2796]
[1747705887846,3.2078,2541.7,2541.6,0.78672]
[1747705888347,3.2078,2542.0,2541.6,5.0]
[1747705888550,2.35514533,2542.1,2541.7,5.1154]
[1747705888742,2.35514533,2542.1,2542.0,0.78659]
[1747705888945,2.35514533,2542.1,2542.0,9.26659]
[1747705889540,3.2078,2542.4,2542.2,0.78653]
[1747705889736,3.99427,2542.4,2542.3,1.2672]
[1747705889941,44.0078,2542.4,2542.0,0.42029581]
[1747705890142,3.99436,2542.1,2542.0,0.42029581]
[1747705890739,0.78662,2541.9,2541.8,0.44543953]
[1747705891046,0.78678,2541.4,2540.8,1.9911]
[1747705891249,8.99458,2541.4,2540.6,11.11449385]
[1747705891441,8.99458,2541.4,2540.6,3.42150385]
[1747705891642,11.07488,2541.4,2540.7,0.78699]
[1747705891945,51.87488,2541.4,2540.8,0.78696]
[1747705892652,51.87488,2541.4,2540.9,0.78693]
[1747705892850,0.78683,2541.3,2540.9,0.78693]
[1747705893148,2.17144,2541.2,2540.7,1.2939]
[1747705893347,2.17144,2541.2,2540.7,2.08088]
[1747705893847,2.17144,2541.2,2540.7,1.2939]
[1747705894050,7.17144,2541.2,2540.7,0.78698]
[1747705894243,7.17144,2541.2,2540.6,2.63449385]
[1747705895250,7.17144,2541.2,2540.7,2.07718]
[1747705895549,2.17144,2541.2,2540.7,1.2902]
[1747705895851,2.17144,2541.2,2540.8,0.78695]
[1747705896044,2.17144,2541.2,2540.7,1.2902]
[1747705896045,2.17144,2541.2,2540.9,0.78693]
[1747705896850,2.17144,2541.2,2540.8,0.78695]
[1747705897150,42.97144,2541.2,2540.8,0.78695]
[1747705897350,42.97144,2541.2,2540.9,1.3462]
[1747705897652,42.97144,2541.2,2540.2,9.1652]
[1747705897842,42.97144,2541.2,2540.3,1.3462]
[1747705898038,42.97144,2541.2,2540.8,0.78695]
[1747705898245,42.97144,2541.2,2540.7,0.78698]
[1747705898447,42.97144,2541.2,2540.8,0.78696]
[1747705898946,42.97144,2541.2,2541.0,0.78689]
[1747705898947,42.1846,2541.2,2541.0,0.78689]
[1747705899154,42.1846,2541.2,2541.1,1.35210284]
[1747705900239,40.8,2541.2,2541.1,1.35210284]
[1747705900443,41.58684,2541.2,2541.1,1.35210284]
[1747705900647,40.8,2541.2,2541.1,1.35210284]
[1747705901048,41.58684,2541.2,2541.1,1.35210284]
[1747705901346,0.78707,2540.5,2540.2,8.469]
[1747705901553,3.2078,2540.9,2540.2,10.4297]
[1747705901946,40.8,2540.8,2540.2,10.4297]
[1747705902344,40.80586366,2540.8,2540.4,0.78707]
[1747705902549,40.80586366,2540.8,2540.5,1.2668]
[1747705902846,40.80586366,2540.8,2540.5,2.05384]
[1747705903149,40.80586366,2540.8,2540.6,0.78701]
[1747705903450,40.80586366,2540.8,2540.7,1.2796]
[1747705904039,0.00586366,2540.8,2540.7,2.0666]
[1747705904246,0.00586366,2540.8,2540.7,7.0666]
[1747705905545,0.00586366,2540.8,2540.7,7.48322885]
[1747705905746,3.2078,2541.5,2540.7,9.90402885]
[1747705905945,3.2078,2541.5,2541.3,0.7868]
[1747705906147,44.0078,2541.5,2541.4,2.0285]
[1747705906546,44.0078,2541.5,2541.4,2.81528]
[1747705907042,44.0078,2541.5,2541.0,8.47]
[1747705907248,1.2953,2541.4,2541.2,0.78682]
[1747705907549,1.2953,2541.4,2541.3,1.3565]
[1747705909243,2.08208,2541.4,2541.3,1.3565]
[1747705909447,0.78688,2541.1,2540.9,0.672]
[1747705909654,1.3353,2541.0,2540.9,0.672]
[1747705909848,1.3353,2541.0,2540.9,1.949]
[1747705910154,3.2078,2541.1,2540.9,1.949]
[1747705910353,1.3353,2541.4,2541.1,0.78685]
[1747705910556,1.3353,2541.4,2541.2,1.277]
[1747705910853,1.3353,2541.4,2540.9,0.672]
[1747705911042,3.2078,2541.1,2540.9,0.672]
[1747705911356,3.2078,2541.1,2540.8,2.06394]
[1747705911752,3.2078,2541.1,2540.9,0.78693]
[1747705912048,0.6486,2541.3,2541.0,2.0746]
[1747705912256,0.6486,2541.3,2541.0,1.2877]
[1747705912456,3.2078,2541.1,2540.9,0.78692]
[1747705912953,3.2078,2541.1,2541.0,1.2877]
[1747705913157,3.2078,2541.1,2541.0,2.0746]
[1747705916358,3.2078,2541.1,2541.0,1.2877]
[1747705917060,4.5448,2541.1,2541.0,1.2877]
[1747705918561,4.5448,2541.1,2540.8,8.469]
[1747705918857,4.5448,2541.1,2540.9,1.352]
[1747705919767,0.7869,2541.0,2540.9,1.352]
[1747705919955,1.3202,2541.0,2540.5,1.3543]
[1747705920154,1.9534,2541.0,2540.6,1.352]
[1747705920462,2.74033,2541.0,2540.7,0.78699]
[1747705920660,1.9534,2541.0,2540.7,0.78699]
[1747705920960,1.9534,2541.0,2540.8,1.352]
[1747705921265,3.2078,2541.1,2540.8,1.352]
[1747705921562,3.2078,2541.4,2541.3,0.78681]
[1747705921957,44.0078,2541.4,2541.3,0.78681]
[1747705922257,5.55914318,2541.7,2541.6,0.78672]
[1747705922466,2.35134318,2541.9,2541.8,0.78666]
[1747705923162,2.35134318,2541.9,2541.8,1.3591]
[1747705923367,2.35134318,2541.9,2541.8,2.14576]
[1747705923960,2.35134318,2541.9,2541.8,2.56233585]
[1747705924854,2.35134318,2541.9,2541.8,1.77567585]
[1747705925457,2.35134318,2541.9,2541.8,0.41657585]
[1747705925861,4.31594318,2541.9,2541.8,0.41657585]
[1747705926060,1.9646,2541.9,2541.6,9.26261284]
[1747705926259,0.6607,2541.9,2541.8,0.78666]
[1747705926463,3.2078,2542.0,2541.7,1.3486]
[1747705926764,3.2078,2542.0,2541.8,0.78666]
[1747705927065,3.2078,2542.0,2541.9,2.13522]
[1747705928669,3.2078,2542.0,2541.9,1.3486]
[1747705929468,3.2078,2542.0,2541.9,2.13522]
[1747705929968,40.8,2542.1,2541.9,2.13522]
[1747705931068,44.0078,2542.1,2541.9,1.3486]
[1747705931366,1.3288,2542.0,2541.9,1.3486]
[1747705931962,1.3288,2542.0,2541.9,2.13522]
[1747705932967,1.3288,2542.0,2541.9,1.3486]
[1747705934170,1.3288,2542.0,2541.9,2.13522]
[1747705935174,40.8,2542.1,2542.0,0.78659]
[1747705935370,40.8,2542.1,2542.0,2.14309]
[1747705937272,0.6487,2542.4,2542.0,2.14309]
[1747705937273,0.6487,2542.4,2542.2,0.78652]
[1747705937471,0.6487,2542.4,2542.3,1.3721]
[1747705937673,41.4487,2542.4,2542.3,1.3721]
[1747705937870,41.4487,2542.4,2542.3,2.1586]
[1747705938369,45.44297,2542.4,2542.0,1.2028617]
[1747705938570,1.3866,2542.3,2542.1,0.78656]
[1747705939576,1.3866,2542.3,2542.2,0.78653]
[1747705940476,41.4487,2542.4,2542.2,0.78653]
[1747705940676,41.4487,2542.4,2542.3,1.3732]
[1747705941976,41.4487,2542.4,2542.3,2.1597]
[1747705942176,40.8,2542.4,2542.3,2.1597]
[1747705942677,40.8,2542.4,2542.3,1.3732]
[1747705943173,40.8,2542.4,2542.3,2.1597]
[1747705943568,40.8,2542.4,2542.1,0.78655]
[1747705943768,1.3161,2542.3,2542.2,0.78653]
[1747705943978,0.6436,2542.6,2542.1,3.2078]
[1747705944172,0.6436,2542.6,2542.4,0.78644]
[1747705944473,1.9597,2542.6,2542.3,0.78649]
[1747705944674,1.9597,2542.6,2542.4,0.78646]
[1747705945974,1.9597,2542.6,2542.5,0.78644]
[1747705946171,2.35134318,2543.2,2542.5,8.451]
[1747705946376,2.35134318,2543.2,2543.1,0.78625]
[1747705946873,43.15134318,2543.2,2543.1,0.78625]
[1747705947080,40.8,2543.2,2543.1,0.78625]
[1747705947375,3.2078,2543.6,2543.3,0.78617]
[1747705947572,4.4785,2543.6,2543.3,0.78617]
[1747705947775,40.8,2543.5,2543.4,1.2817]
[1747705948081,3.2078,2543.6,2543.4,1.2817]
[1747705948275,2.35134318,2543.7,2543.6,0.7861]
[1747705948782,2.35134318,2543.7,2543.4,1.9564]
[1747705949388,1.9989,2543.6,2543.4,1.9564]
[1747705949683,5.99281,2543.6,2543.2,8.45]
[1747705949875,0.6564,2543.5,2543.2,9.7966]
[1747705950077,1.3168,2543.4,2543.2,9.7966]
[1747705951187,1.3168,2543.4,2543.2,8.45]
[1747705952185,1.3168,2543.4,2543.2,9.7471]
[1747705952788,1.3168,2543.4,2543.0,1.46097]
[1747705952789,1.3168,2543.4,2543.0,0.6747]
[1747705953284,1.3168,2543.4,2543.0,1.9718]
[1747705953784,3.8899,2543.6,2543.0,1.9718]
[1747705954097,41.58615,2543.5,2543.0,2.75808]
[1747705954286,3.2078,2543.3,2542.9,0.00590284]
[1747705954498,3.2078,2543.0,2542.9,0.00590284]
[1747705954683,3.2078,2543.0,2542.4,0.59996505]
[1747705954888,3.2078,2542.5,2542.4,0.59996505]
[1747705955292,40.8,2542.5,2542.4,2.71473505]
[1747705955594,40.8,2542.5,2542.4,3.35903505]
[1747705956496,40.8,2542.5,2542.4,2.57256505]
[1747705957097,40.8,2542.5,2542.4,3.35903505]
[1747705957298,40.8,2542.5,2542.4,2.75907]
[1747705958202,0.00590284,2542.7,2542.4,2.75907]
[1747705958496,0.00590284,2542.7,2542.4,1.9726]
[1747705958695,40.8,2542.6,2542.4,1.9726]
[1747705959099,1.39170284,2542.7,2542.6,0.78641]
[1747705959100,0.00590284,2542.7,2542.6,0.78641]
[1747705959302,0.00590284,2542.7,2542.6,5.28461]
[1747705959491,0.00590284,2542.7,2542.6,10.28461]
[1747705961104,0.00590284,2542.7,2542.6,5.28461]
[1747705961299,0.00590284,2542.7,2542.6,1.2904]
[1747705961605,0.00590284,2542.7,2542.6,2.07681]
[1747705963104,0.00590284,2542.7,2542.6,1.2904]
[1747705963397,0.00590284,2542.7,2542.4,0.6443]
[1747705963593,1.26750284,2542.7,2542.4,1.43077]
[1747705963797,1.26750284,2542.7,2542.4,2.79207]
[1747705964802,1.26750284,2542.7,2542.4,2.79205]
[1747705965000,1.26750284,2542.7,2542.4,2.0056]
[1747705965302,1.26750284,2542.7,2542.5,0.78644]
[1747705965501,1.26750284,2542.7,2542.5,1.3613]
[1747705965693,1.26750284,2542.7,2542.5,2.14773]
[1747705965894,1.26750284,2542.7,2542.4,0.78645]
[1747705966192,1.26750284,2542.7,2542.3,1.3613]
[1747705967001,3.2078,2542.6,2542.3,1.3613]
[1747705967200,2.0187,2542.5,2542.3,1.3613]
[1747705967898,2.0187,2542.5,2542.2,0.00590284]
[1747705968604,2.0187,2542.5,2542.2,0.79243284]
[1747705968802,3.2078,2542.6,2542.2,0.00590284]
[1747705968999,3.2078,2542.6,2542.4,0.78647]
[1747705969198,4.5713,2542.6,2542.5,2.14194]
[1747705969395,3.2078,2542.6,2542.5,2.14194]
[1747705969807,0.00590284,2542.7,2542.6,0.78641]
[1747705971103,0.00590284,2542.7,2542.5,1.3555]
[1747705971104,3.21370284,2542.7,2542.5,1.3555]
[1747705971301,1.3935,2542.6,2542.5,2.14194]
[1747705972408,0.00590284,2542.7,2542.6,0.78641]
[1747705973300,0.00590284,2542.7,2542.5,2.14192]
[1747705973602,3.21370284,2542.7,2542.5,1.3555]
[1747705973905,0.00590284,2542.7,2542.5,2.14192]
[1747705974102,3.21370284,2542.7,2542.5,1.3555]
[1747705974297,1.2833,2542.6,2542.5,1.3555]
[1747705974698,3.86120284,2542.7,2542.5,1.3555]
[1747705974903,0.00590284,2542.7,2542.6,0.78641]
[1747705975304,0.00590284,2542.7,2542.5,1.3555]
[1747705975506,1.28920284,2542.7,2542.5,1.3555]
[1747705975904,1.28920284,2542.7,2542.3,0.78649]
[1747705976213,0.6475,2542.6,2542.2,0.00590284]
[1747705976407,0.6475,2542.6,2542.5,0.78644]
[1747705976621,0.6475,2542.6,2542.3,1.2762]
[1747705976912,1.28920284,2542.7,2542.5,0.78644]
[1747705977209,1.28920284,2542.7,2542.6,1.2762]
[1747705977707,0.00590284,2542.7,2542.6,2.06261]
[1747705977901,0.00590284,2542.7,2542.6,1.2762]
[1747705978101,1.29990284,2542.7,2542.6,1.2762]
[1747705979211,1.29990284,2542.7,2542.6,1.26949511]
[1747705980014,4.50770284,2542.7,2542.4,0.78645]
[1747705980211,4.50770284,2542.7,2542.4,0.78646]
[1747705980406,5.29409284,2542.7,2542.2,0.67110284]
[1747705980614,0.78641,2542.6,2542.2,1.45762284]
[1747705980813,1.3911,2542.5,2542.3,0.78648]
[1747705981014,1.3911,2542.5,2542.4,0.78647]
[1747705981612,3.21370284,2542.7,2542.2,0.67110284]
[1747705981613,0.00590284,2542.7,2542.6,0.78641]
[1747705983117,0.00590284,2542.7,2542.5,0.78643]
[1747705983311,1.37560284,2542.7,2542.5,0.78643]
[1747705984616,5.36979284,2542.7,2542.3,2.15298]
[1747705984817,3.2078,2542.4,2542.3,2.153]
[1747705985005,3.2078,2542.4,2542.3,1.3665]
[1747705985813,3.2078,2542.4,2542.3,1.78379169]
[1747705986004,3.8786,2542.4,2542.3,1.78379169]
[1747705986209,3.2078,2542.4,2542.3,2.57029169]
[1747705986810,3.2078,2542.4,2542.3,1.78379169]
[1747705987009,3.2078,2542.4,2542.3,0.41729169]
[1747705987514,1.3853,2542.6,2542.4,0.78645]
[1747705987716,1.3853,2542.6,2542.3,0.41729169]
[1747705988016,3.2078,2542.4,2542.3,0.41729169]
[1747705988214,3.2078,2542.4,2542.3,1.20379169]
[1747705988519,1.3853,2542.6,2542.3,1.20379169]
[1747705989318,3.2078,2542.4,2542.3,0.41729169]
[1747705989726,4.5691,2542.4,2542.3,0.41729169]
[1747705990414,4.5691,2542.4,2542.2,0.00590284]
[1747705990925,0.6822,2542.3,2542.2,0.00590284]
[1747705991116,2.0435,2542.3,2542.2,0.79243284]
[1747705992026,3.2078,2542.4,2542.3,0.7865]
[1747705992325,3.2078,2542.4,2542.3,2.1362]
[1747705993127,3.2078,2542.4,2542.3,2.5539924]